fUSD/lending_fUSD_20240109
["ID","MTS","AMOUNT","RATE_DAILY","PERIOD"]
[310916932,1704814402727,-500.0,0.00042164,30]
[310916933,1704814402737,-500.0,0.00042164,30]
[310916934,1704814402746,-943.45,0.00042164,30]
[310916935,1704814402755,-1046.91,0.00042164,30]
[310916936,1704814402765,-500.0,0.00042164,30]
[310916937,1704814402774,-500.0,0.00042164,30]
[310916938,1704814402784,-989.32,0.00042164,30]
[310916939,1704814402794,-523.36,0.00042164,30]
[310916940,1704814402803,-735.81,0.00042164,30]
[310916941,1704814402813,-500.0,0.00042164,30]
[310916942,1704814402822,-805.93,0.00042164,30]
[310916943,1704814402833,-500.0,0.00042164,7]
[310916944,1704814402844,-526.97496479,0.00042164,30]
[310916945,1704814402853,-1029.87,0.00042164,30]
[310916946,1704814402862,-500.0,0.00042164,30]
[310916947,1704814402872,-191.13700708,0.00042164,30]
[310916948,1704814402882,-858.42,0.00042164,30]
[310916949,1704814402895,-985.14,0.00042164,30]
[310916950,1704814402905,-250.0,0.00042164,30]
[310916951,1704814402914,-887.41,0.00042164,30]
[310916952,1704814402922,-586.06,0.00042164,30]
[310916953,1704814402932,-500.0,0.00042164,30]
[310916954,1704814402941,-542.26,0.00042164,30]
[310916955,1704814402949,-924.59,0.00042164,30]
[310916956,1704814402958,-372.63882429,0.00042164,30]
[310916957,1704814402969,-1031.16,0.00042164,30]
[310916958,1704814402978,-376.7153678,0.00042164,30]
[310916959,1704814402992,-639.05,0.00042164,30]
[310916960,1704814403001,-651.17,0.00042164,6]
[310916961,1704814403011,-630.96,0.00042164,30]
[310916962,1704814403020,-808.61,0.00042164,30]
[310916963,1704814403030,-772.64,0.00042164,30]
[310916964,1704814403039,-768.03,0.00042164,30]
[310916965,1704814403049,-1151.39,0.00042164,30]
[310916966,1704814403058,-500.0,0.00042164,30]
[310916967,1704814403068,-500.0,0.00042164,30]
[310916968,1704814403077,-500.0,0.00042164,30]
[310916969,1704814403088,-594.48,0.00042164,30]
[310916970,1704814403098,-1345.27,0.00042164,30]
[310916971,1704814403108,-504.9,0.00042164,30]
[310916972,1704814403117,-530.22,0.00042164,30]
[310916973,1704814403127,-500.0,0.00042164,30]
[310916974,1704814403137,-898.15,0.00042164,30]
[310916975,1704814403147,-827.59,0.00042164,30]
[310916976,1704814403157,-1088.78,0.00042164,30]
[310916977,1704814403167,-1220.08,0.00042164,30]
[310916978,1704814403177,-965.85,0.00042164,30]
[310916979,1704814403187,-1200.92,0.00042164,30]
[310916980,1704814403197,-677.14,0.00042164,30]
[310916981,1704814403206,-500.0,0.00042164,30]
[310916982,1704814403215,-500.0,0.00042164,30]
[310916983,1704814403226,-615.95,0.00042164,30]
[310916984,1704814403235,-500.0,0.00042164,30]
[310916985,1704814403244,-906.91,0.00042164,30]
[310916986,1704814403256,-500.0,0.00042164,30]
[310916987,1704814403265,-1003.46,0.00042164,30]
[310916988,1704814403274,-500.0,0.00042164,30]
[310916989,1704814403284,-805.99,0.00042164,30]
[310916990,1704814403293,-500.0,0.00042164,30]
[310916991,1704814403302,-500.0,0.00042164,30]
[310916992,1704814403312,-920.79,0.00042164,30]
[310916993,1704814403322,-983.43,0.00042164,30]
[310916994,1704814403331,-628.8,0.00042164,30]
[310916995,1704814403340,-500.0,0.00042164,30]
[310916996,1704814403350,-500.0,0.00042164,30]
[310916997,1704814403359,-544.66,0.00042164,30]
[310916998,1704814403368,-532.72370155,0.00042164,30]
[310916999,1704814403378,-1232.09,0.00042164,30]
[310917000,1704814403388,-832.26,0.00042164,30]
[310917001,1704814403397,-500.0,0.00042164,7]
[310917002,1704814403406,-941.95,0.00042164,30]
[310917003,1704814403415,-500.0,0.00042164,30]
[310917004,1704814403430,-457.3561891,0.00042164,30]
[310917005,1704814403440,-809.62,0.00042164,30]
[310917006,1704814403449,-1379.83,0.00042164,30]
[310917007,1704814403458,-500.0,0.00042164,30]
[310917008,1704814403468,-844.05,0.00042164,30]
[310917009,1704814403477,-851.49,0.00042164,30]
[310917010,1704814403486,-562.95,0.00042164,30]
[310917011,1704814403495,-1162.12,0.00042164,30]
[310917012,1704814403504,-872.21,0.00042164,30]
[310917013,1704814403513,-500.0,0.00042164,30]
[310917014,1704814403523,-706.17,0.00042164,30]
[310917015,1704814403532,-980.88,0.00042164,30]
[310917016,1704814403542,-730.77,0.00042164,30]
[310917017,1704814403552,-500.0,0.00042164,30]
[310917018,1704814403561,-500.0,0.00042164,30]
[310917019,1704814403570,-635.39,0.00042164,30]
[310917020,1704814403580,-356.38936048,0.00042164,30]
[310917021,1704814403589,-921.8,0.00042164,30]
[310917022,1704814403598,-500.0,0.00042164,30]
[310917023,1704814403608,-1001.03,0.00042164,30]
[310917024,1704814403617,-2820.32,0.00042164,30]
[310917025,1704814403626,-462.31606382,0.00042164,30]
[310917026,1704814403635,-878.02,0.00042164,30]
[310917027,1704814403646,-2535.74,0.00042164,30]
[310917028,1704814403656,-613.33,0.00042164,30]
[310917029,1704814403665,-500.0,0.00042164,30]
[310917030,1704814403674,-1197.1,0.00042164,30]
[310917031,1704814403684,-500.0,0.00042164,30]
[310917032,1704814403694,-703.38,0.00042164,30]
[310917033,1704814403703,-500.0,0.00042164,30]
[310917034,1704814403713,-1209.27,0.00042164,30]
[310917035,1704814403722,-3470.75,0.00042164,30]
[310917036,1704814403732,-736.81,0.00042164,30]
[310917037,1704814403741,-500.0,0.00042164,30]
[310917038,1704814403751,-832.75,0.00042164,30]
[310917039,1704814403760,-1686.91,0.00042164,30]
[310917040,1704814403769,-2537.38,0.00042164,30]
[310917041,1704814403779,-2682.01,0.00042164,30]
[310917042,1704814403788,-1565.58,0.00042164,30]
[310917043,1704814403797,-740.27,0.00042164,30]
[310917044,1704814403807,-501.25,0.00042164,30]
[310917045,1704814403816,-600.36,0.00042164,30]
[310917046,1704814403826,-500.0,0.00042164,30]
[310917047,1704814403835,-1224.61,0.00042164,30]
[310917048,1704814403849,-2236.0,0.00042164,30]
[310917049,1704814403859,-2897.3,0.00042164,30]
[310917050,1704814403871,-1928.1,0.00042164,30]
[310917051,1704814403881,-1993.87,0.00042164,30]
[310917052,1704814403891,-576.08,0.00042164,30]
[310917053,1704814403900,-500.0,0.00042164,30]
[310917054,1704814403909,-556.49,0.00042164,30]
[310917055,1704814403919,-624.68,0.00042164,30]
[310917056,1704814403928,-2377.69,0.00042164,30]
[310917057,1704814403938,-770.16,0.00042164,30]
[310917058,1704814403947,-1122.24,0.00042164,30]
[310917059,1704814403957,-500.0,0.00042164,30]
[310917060,1704814403966,-298.1724295,0.00042164,30]
[310917061,1704814403976,-2275.75,0.00042164,30]
[310917062,1704814403986,-2702.81,0.00042164,30]
[310917063,1704814403995,-500.0,0.00042164,30]
[310917064,1704814404004,-1074.62,0.00042164,30]
[310917065,1704814404013,-2309.85,0.00042164,30]
[310917066,1704814404023,-787.86,0.00042164,30]
[310917067,1704814404032,-3474.73,0.00042164,30]
[310917068,1704814404041,-2283.1,0.00042164,30]
[310917069,1704814404051,-500.0,0.00042164,30]
[310917070,1704814404060,-1596.69,0.00042164,30]
[310917071,1704814404070,-1645.78,0.00042164,30]
[310917072,1704814404079,-1113.3,0.00042164,30]
[310917073,1704814404089,-1309.33,0.00042164,30]
[310917074,1704814404098,-1314.94,0.00042164,30]
[310917075,1704814404108,-233.85551327,0.00042164,30]
[310917076,1704814404117,-1968.01,0.00042164,30]
[310917077,1704814404127,-1096.11,0.00042164,30]
[310917078,1704814404137,-1246.22,0.00042164,30]
[310917079,1704814404147,-544.47,0.00042164,30]
[310917080,1704814404156,-1433.82,0.00042164,30]
[310917081,1704814404166,-500.0,0.00042164,30]
[310917082,1704814404175,-721.49,0.00042164,30]
[310917083,1704814404185,-2589.92,0.00042164,30]
[310917084,1704814404195,-500.0,0.00042164,30]
[310917085,1704814404206,-1499.73,0.00042164,30]
[310917086,1704814404216,-500.0,0.00042164,30]
[310917087,1704814404227,-1138.55,0.00042164,30]
[310917088,1704814404237,-2193.46,0.00042164,30]
[310917089,1704814404248,-1703.93,0.00042164,30]
[310917090,1704814404259,-500.0,0.00042164,30]
[310917091,1704814404269,-1188.38,0.00042164,30]
[310917092,1704814404279,-1590.0,0.00042164,30]
[310917093,1704814404289,-500.0,0.00042164,30]
[310917094,1704814404300,-987.73,0.00042164,30]
[310917095,1704814404310,-520.23,0.00042164,30]
[310917096,1704814404320,-1982.92,0.00042164,30]
[310917097,1704814404330,-523.39,0.00042164,30]
[310917098,1704814404340,-641.09,0.00042164,30]
[310917099,1704814404350,-562.23,0.00042164,30]
[310917100,1704814404361,-931.93,0.00042164,30]
[310917101,1704814404370,-552.3,0.00042164,30]
[310917102,1704814404380,-1038.62,0.00042164,30]
[310917103,1704814404392,-1121.37,0.00042164,30]
[310917104,1704814404402,-3941.88,0.00042164,30]
[310917105,1704814404426,-1704.41,0.00042164,30]
[310917106,1704814404437,-1031.35,0.00042164,30]
[310917107,1704814404447,-600.61,0.00042164,30]
[310917108,1704814404457,-672.4,0.00042164,30]
[310917109,1704814404468,-1793.95,0.00042164,30]
[310917110,1704814404478,-830.11,0.00042164,30]
[310917111,1704814404488,-626.73,0.00042164,30]
[310917112,1704814404498,-1939.09,0.00042164,30]
[310917113,1704814404508,-500.0,0.00042164,30]
[310917114,1704814404518,-1992.23,0.00042164,30]
[310917115,1704814404528,-1672.06,0.00042164,30]
[310917116,1704814404537,-1049.82,0.00042164,30]
[310917117,1704814404547,-832.6,0.00042164,30]
[310917118,1704814404557,-592.07,0.00042164,30]
[310917119,1704814404568,-1154.73,0.00042164,30]
[310917120,1704814404578,-617.46,0.00042164,30]
[310917121,1704814404587,-500.0,0.00042164,30]
[310917122,1704814404597,-2019.49,0.00042164,30]
[310917123,1704814404607,-500.0,0.00042164,30]
[310917124,1704814404617,-623.61,0.00042164,30]
[310917125,1704814404628,-1575.33,0.00042164,30]
[310917126,1704814404641,-500.0,0.00042164,30]
[310917127,1704814404651,-1208.87,0.00042164,30]
[310917128,1704814404661,-589.72,0.00042164,30]
[310917129,1704814404671,-1100.7,0.00042164,30]
[310917130,1704814404682,-574.55,0.00042164,30]
[310917131,1704814404692,-1443.2,0.00042164,30]
[310917132,1704814404701,-1118.67,0.00042164,30]
[310917133,1704814404711,-1567.43,0.00042164,30]
[310917134,1704814404721,-500.0,0.00042164,30]
[310917135,1704814404731,-538.72,0.00042164,30]
[310917136,1704814404740,-500.0,0.00042164,30]
[310917137,1704814404749,-615.94,0.00042164,30]
[310917138,1704814404760,-500.0,0.00042164,30]
[310917139,1704814404770,-1835.01,0.00042164,30]
[310917140,1704814404780,-500.0,0.00042164,30]
[310917141,1704814404790,-835.4,0.00042164,30]
[310917142,1704814404799,-500.0,0.00042164,30]
[310917143,1704814404809,-2298.01,0.00042164,30]
[310917144,1704814404818,-500.0,0.00042164,30]
[310917145,1704814404830,-870.0,0.00042164,30]
[310917146,1704814404840,-539.47,0.00042164,30]
[310917147,1704814404855,-1310.11,0.00042164,30]
[310917148,1704814404864,-1150.5,0.00042164,30]
[310917149,1704814404874,-500.0,0.00042164,30]
[310917150,1704814404885,-1360.64,0.00042164,30]
[310917151,1704814404898,-1204.31,0.00042164,30]
[310917152,1704814404908,-923.19,0.00042164,30]
[310917153,1704814404917,-771.54,0.00042164,30]
[310917154,1704814404927,-2584.55,0.00042164,30]
[310917155,1704814404937,-1160.23,0.00042164,30]
[310917156,1704814404947,-1400.49,0.00042164,30]
[310917157,1704814404956,-1315.98,0.00042164,30]
[310917158,1704814404966,-500.0,0.00042164,10]
[310917159,1704814404975,-1972.08,0.00042164,30]
[310917160,1704814404985,-1668.26,0.00042164,30]
[310917161,1704814404995,-1429.35,0.00042164,30]
[310917162,1704814405006,-1439.0,0.00042164,30]
[310917163,1704814405016,-946.78,0.00042164,30]
[310917164,1704814405026,-2461.03,0.00042164,30]
[310917165,1704814405036,-713.51,0.00042164,30]
[310917166,1704814405045,-1659.56,0.00042164,30]
[310917167,1704814405054,-500.0,0.00042164,30]
[310917168,1704814405064,-500.0,0.00042164,30]
[310917169,1704814405073,-500.0,0.00042164,30]
[310917170,1704814405083,-803.78,0.00042164,30]
[310917171,1704814405093,-614.42,0.00042164,30]
[310917172,1704814405103,-500.0,0.00042164,30]
[310917173,1704814405113,-800.95,0.00042164,30]
[310917174,1704814405126,-1758.64,0.00042164,30]
[310917175,1704814405135,-500.0,0.00042164,30]
[310917176,1704814405147,-1778.42,0.00042164,30]
[310917177,1704814405157,-3407.77,0.00042164,30]
[310917178,1704814405167,-2138.28,0.00042164,30]
[310917179,1704814405177,-500.0,0.00042164,30]
[310917180,1704814405187,-848.11,0.00042164,30]
[310917181,1704814405197,-886.41,0.00042164,30]
[310917182,1704814405207,-500.0,0.00042164,30]
[310917183,1704814405217,-1677.31,0.00042164,30]
[310917184,1704814405227,-500.0,0.00042164,30]
[310917185,1704814405236,-3178.9,0.00042164,30]
[310917186,1704814405246,-1138.73,0.00042164,30]
[310917187,1704814405257,-2732.04,0.00042164,30]
[310917188,1704814405267,-500.0,0.00042164,30]
[310917189,1704814405277,-770.65,0.00042164,30]
[310917190,1704814405287,-500.0,0.00042164,30]
[310917191,1704814405297,-2194.76,0.00042164,30]
[310917192,1704814405307,-500.0,0.00042164,30]
[310917193,1704814405318,-1048.75,0.00042164,30]
[310917194,1704814405328,-1329.34,0.00042164,30]
[310917195,1704814405339,-2754.0,0.00042164,30]
[310917196,1704814405349,-1008.53,0.00042164,30]
[310917197,1704814405360,-1507.83,0.00042164,30]
[310917198,1704814405371,-680.5,0.00042164,30]
[310917199,1704814405381,-500.0,0.00042164,30]
[310917200,1704814405392,-634.38,0.00042164,30]
[310917201,1704814405403,-2700.24,0.00042164,30]
[310917202,1704814405413,-500.0,0.00042164,30]
[310917203,1704814405423,-1356.37,0.00042164,30]
[310917204,1704814405433,-500.0,0.00042164,30]
[310917205,1704814405443,-651.64,0.00042164,30]
[310917206,1704814405454,-500.0,0.00042164,30]
[310917207,1704814405463,-500.0,0.00042164,30]
[310917208,1704814405475,-952.35,0.00042164,30]
[310917209,1704814405485,-1810.23,0.00042164,30]
[310917210,1704814405496,-220.80967413,0.00042164,30]
[310917211,1704814405506,-587.58,0.00042164,30]
[310917212,1704814405755,-625.64,0.00042164,30]
[310917213,1704814405766,-676.46,0.00042164,30]
[310917214,1704814405776,-500.0,0.00042164,30]
[310917215,1704814405785,-500.0,0.00042164,30]
[310917216,1704814405795,-1006.7,0.00042164,30]
[310917217,1704814405804,-1236.35,0.00042164,30]
[310917218,1704814405814,-1919.15,0.00042164,30]
[310917219,1704814405823,-1037.96,0.00042164,30]
[310917220,1704814405837,-500.0,0.00042164,30]
[310917221,1704814405849,-1578.69,0.00042164,30]
[310917222,1704814405859,-1865.73,0.00042164,30]
[310917223,1704814405868,-500.0,0.00042164,30]
[310917224,1704814405877,-1362.93,0.00042164,30]
[310917225,1704814405887,-1537.84,0.00042164,30]
[310917226,1704814405898,-2456.66,0.00042164,30]
[310917227,1704814405908,-500.0,0.00042164,30]
[310917228,1704814405917,-589.31,0.00042164,30]
[310917229,1704814405927,-1710.93,0.00042164,30]
[310917230,1704814405937,-788.83,0.00042164,30]
[310917231,1704814405947,-500.0,0.00042164,30]
[310917232,1704814405958,-2756.46,0.00042164,30]
[310917233,1704814405968,-2588.77,0.00042164,30]
[310917234,1704814405978,-946.47,0.00042164,30]
[310917235,1704814405988,-2705.23,0.00042164,30]
[310917236,1704814405997,-500.0,0.00042164,30]
[310917237,1704814406007,-825.0,0.00042164,30]
[310917238,1704814406016,-1714.7,0.00042164,30]
[310917239,1704814406026,-821.89,0.00042164,30]
[310917240,1704814406036,-987.47,0.00042164,30]
[310917241,1704814406046,-12516.53,0.00042164,30]
[310917242,1704814406057,-2523.55,0.00042164,30]
[310917243,1704814406066,-1027.68,0.00042164,30]
[310917244,1704814406075,-1217.97,0.00042164,30]
[310917245,1704814406086,-1474.62,0.00042164,30]
[310917246,1704814406097,-500.0,0.00042164,30]
[310917247,1704814406106,-1454.57,0.00042164,30]
[310917248,1704814406116,-500.0,0.00042164,30]
[310917249,1704814406126,-1048.97,0.00042164,30]
[310917250,1704814406136,-2127.96,0.00042164,30]
[310917251,1704814406147,-500.0,0.00042164,30]
[310917252,1704814406158,-1299.93,0.00042164,30]
[310917253,1704814406167,-2596.84,0.00042164,30]
[310917254,1704814406177,-509.080333,0.00042164,30]
[310917255,1704814406186,-1950.17,0.00042164,30]
[310917256,1704814406196,-725.04,0.00042164,30]
[310917257,1704814406205,-2106.17,0.00042164,30]
[310917258,1704814406215,-794.41,0.00042164,30]
[310917259,1704814406228,-3285.45,0.00042164,30]
[310917260,1704814406238,-1542.09,0.00042164,7]
[310917261,1704814406248,-2655.79,0.00042164,30]
[310917262,1704814406259,-7119.89,0.00042164,30]
[310917263,1704814406268,-650.25,0.00042164,30]
[310917264,1704814406278,-1087.65,0.00042164,30]
[310917265,1704814406287,-500.0,0.00042164,30]
[310917266,1704814406297,-500.0,0.00042164,30]
[310917267,1704814406306,-913.65,0.00042164,30]
[310917268,1704814406316,-977.92,0.00042164,30]
[310917269,1704814406326,-2362.44,0.00042164,30]
[310917270,1704814406336,-576.88,0.00042164,30]
[310917271,1704814406346,-1112.82,0.00042164,30]
[310917272,1704814406356,-1726.68,0.00042164,30]
[310917273,1704814406368,-3996.86,0.00042164,30]
[310917274,1704814406378,-2396.9,0.00042164,30]
[310917275,1704814406388,-2486.71,0.00042164,30]
[310917276,1704814406398,-3045.65,0.00042164,30]
[310917277,1704814406407,-502.99,0.00042164,30]
[310917278,1704814406417,-4277.01,0.00042164,30]
[310917279,1704814406427,-2246.6,0.00042164,30]
[310917280,1704814406437,-1448.82,0.00042164,2]
[310917281,1704814406447,-1043.39,0.00042164,30]
[310917282,1704814406456,-502.73,0.00042164,30]
[310917283,1704814406466,-534.65,0.00042164,30]
[310917284,1704814406476,-891.36,0.00042164,30]
[310917285,1704814406486,-1353.62,0.00042164,30]
[310917286,1704814406495,-1838.21,0.00042164,30]
[310917287,1704814406506,-2632.89,0.00042164,30]
[310917288,1704814406517,-1576.53,0.00042164,30]
[310917289,1704814406527,-1105.49,0.00042164,30]
[310917290,1704814406537,-862.54,0.00042164,30]
[310917291,1704814406547,-1537.91,0.00042164,30]
[310917292,1704814406557,-500.0,0.00042164,30]
[310917293,1704814406567,-678.18,0.00042164,30]
[310917294,1704814406577,-500.0,0.00042164,30]
[310917295,1704814406588,-1574.3,0.00042164,30]
[310917296,1704814406598,-3580.78,0.00042164,30]
[310917297,1704814406609,-726.93,0.00042164,30]
[310917298,1704814406619,-10916.38,0.00042164,30]
[310917299,1704814406629,-1982.37,0.00042164,30]
[310917300,1704814406639,-1469.95,0.00042164,30]
[310917301,1704814406649,-4265.52,0.00042164,30]
[310917302,1704814406659,-2986.22,0.00042164,30]
[310917303,1704814406669,-3068.15,0.00042164,30]
[310917304,1704814406679,-1699.32,0.00042164,30]
[310917305,1704814406689,-686.48,0.00042164,30]
[310917306,1704814406700,-1390.68,0.00042164,30]
[310917307,1704814406709,-1685.22,0.00042164,30]
[310917308,1704814406719,-1223.53,0.00042164,30]
[310917309,1704814406729,-10247.09,0.00042164,30]
[310917310,1704814406739,-500.0,0.00042164,30]
[310917311,1704814406752,-500.0,0.00042164,30]
[310917312,1704814406761,-500.0,0.00042164,30]
[310917313,1704814406771,-1149.96,0.00042164,30]
[310917314,1704814406781,-6253.79,0.00042164,30]
[310917315,1704814406790,-989.82,0.00042164,30]
[310917316,1704814406801,-2365.66,0.00042164,30]
[310917317,1704814406812,-1963.83,0.00042164,30]
[310917318,1704814406824,-701.0,0.00042164,30]
[310917319,1704814406835,-705.46,0.00042164,30]
[310917320,1704814406846,-7334.72,0.00042164,30]
[310917321,1704814406859,-7759.7,0.00042164,30]
[310917322,1704814406870,-2159.55,0.00042164,30]
[310917323,1704814406880,-7619.16,0.00042164,30]
[310917324,1704814406892,-1725.58,0.00042164,30]
[310917325,1704814406902,-1264.61,0.00042164,30]
[310917326,1704814406912,-2266.7,0.00042164,30]
[310917327,1704814406922,-914.32,0.00042164,30]
[310917328,1704814406933,-689.51,0.00042164,30]
[310917329,1704814406944,-500.0,0.00042164,30]
[310917330,1704814406954,-500.0,0.00042164,30]
[310917331,1704814406963,-6777.19,0.00042164,30]
[310917332,1704814406972,-1573.82,0.00042164,30]
[310917333,1704814406982,-500.0,0.00042164,30]
[310917334,1704814406992,-4036.91,0.00042164,30]
[310917335,1704814407002,-3417.76,0.00042164,30]
[310917336,1704814407013,-2670.87,0.00042164,30]
[310917337,1704814407023,-649.74,0.00042164,30]
[310917338,1704814407033,-1768.69,0.00042164,30]
[310917339,1704814407046,-2656.66,0.00042164,30]
[310917340,1704814407055,-3624.89,0.00042164,30]
[310917341,1704814407066,-891.81,0.00042164,30]
[310917342,1704814407076,-1969.21,0.00042164,30]
[310917343,1704814407086,-4760.81,0.00042164,30]
[310917344,1704814407096,-1849.48,0.00042164,30]
[310917345,1704814407107,-2591.36,0.00042164,30]
[310917346,1704814407116,-1829.62,0.00042164,30]
[310917347,1704814407125,-507.02,0.00042164,30]
[310917348,1704814407135,-1545.72,0.00042164,30]
[310917349,1704814407146,-820.1,0.00042164,30]
[310917350,1704814407155,-1282.15,0.00042164,30]
[310917351,1704814407165,-3330.89,0.00042164,30]
[310917352,1704814407174,-7125.45,0.00042164,30]
[310917353,1704814407183,-1041.48,0.00042164,30]
[310917354,1704814407192,-500.0,0.00042164,30]
[310917355,1704814407202,-4552.78,0.00042164,30]
[310917356,1704814407212,-25135.11,0.00042164,30]
[310917357,1704814407222,-3134.7,0.00042164,30]
[310917358,1704814407231,-18448.99,0.00042164,30]
[310917359,1704814407241,-2000.28,0.00042164,30]
[310917360,1704814407250,-500.0,0.00042164,30]
[310917361,1704814407260,-745.36,0.00042164,30]
[310917362,1704814407269,-13835.28,0.00042164,30]
[310917363,1704814407278,-1655.6,0.00042164,30]
[310917364,1704814407289,-1353.98,0.00042164,30]
[310917365,1704814407298,-2446.36,0.00042164,30]
[310917366,1704814407308,-3526.58,0.00042164,30]
[310917367,1704814407318,-19704.83,0.00042164,30]
[310917368,1704814407327,-11755.41,0.00042164,30]
[310917369,1704814407338,-2085.11,0.00042164,30]
[310917370,1704814407348,-975.77,0.00042164,30]
[310917371,1704814407358,-589.5047286,0.00042164,7]
[310917372,1704814407368,-5456.33,0.00042164,30]
[310917373,1704814407377,-703.77,0.00042164,30]
[310917374,1704814407387,-578.03,0.00042164,30]
[310917375,1704814407397,-18929.09,0.00042164,30]
[310917376,1704814407407,-500.0,0.00042164,30]
[310917377,1704814407416,-91700.44,0.00042164,30]
[310917378,1704814407426,-610.44,0.00042164,30]
[310917379,1704814407439,-11389.4,0.00042164,30]
[310917380,1704814407448,-4955.76,0.00042164,30]
[310917381,1704814407461,-685.04,0.00042164,30]
[310917382,1704814407470,-5644.78,0.00042164,30]
[310917383,1704814407480,-1534.89,0.00042164,30]
[310917384,1704814407490,-1643.59,0.00042164,30]
[310917385,1704814407500,-1919.34,0.00042164,30]
[310917386,1704814407510,-1207.82,0.00042164,30]
[310917387,1704814407520,-2205.97,0.00042164,30]
[310917388,1704814407529,-3051.16,0.00042164,30]
[310917389,1704814407539,-598.04409983,0.00042164,30]
[310917390,1704814407548,-4326.12,0.00042164,30]
[310917391,1704814407558,-23372.75,0.00042164,30]
[310917392,1704814407567,-4650.3,0.00042164,30]
[310917393,1704814407577,-1706.69,0.00042164,30]
[310917394,1704814407587,-3602.98,0.00042164,30]
[310917395,1704814407596,-948.23,0.00042164,30]
[310917396,1704814407607,-1484.9,0.00042164,30]
[310917397,1704814407617,-625.91,0.00042164,30]
[310917398,1704814407628,-4750.61,0.00042164,30]
[310917399,1704814407638,-677.56,0.00042164,30]
[310917400,1704814407652,-753.01,0.00042164,30]
[310917401,1704814407662,-570.53,0.00042164,30]
[310917402,1704814407671,-1014.72,0.00042164,30]
[310917403,1704814407681,-1075.83,0.00042164,30]
[310917404,1704814407692,-10401.23,0.00042164,30]
[310917405,1704814407702,-1988.56,0.00042164,30]
[310917406,1704814407712,-2247.55,0.00042164,30]
[310917407,1704814407721,-500.0,0.00042164,30]
[310917408,1704814407730,-1760.09,0.00042164,30]
[310917409,1704814407741,-1917.59,0.00042164,30]
[310917410,1704814407752,-8509.95,0.00042164,30]
[310917411,1704814407762,-6630.63,0.00042164,30]
[310917412,1704814407773,-912.61,0.00042164,30]
[310917413,1704814407782,-6677.97,0.00042164,30]
[310917414,1704814407793,-500.0,0.00042164,30]
[310917415,1704814407802,-7738.46,0.00042164,30]
[310917416,1704814407811,-500.0,0.00042164,30]
[310917417,1704814407820,-14437.73,0.00042164,30]
[310917418,1704814407830,-1402.57,0.00042164,30]
[310917419,1704814407839,-814.2,0.00042164,30]
[310917420,1704814407851,-839.67,0.00042164,30]
[310917421,1704814407860,-500.0,0.00042164,30]
[310917422,1704814407870,-2196.22,0.00042164,30]
[310917423,1704814407879,-36009.51,0.00042164,30]
[310917424,1704814407889,-2863.88,0.00042164,30]
[310917425,1704814407900,-3304.26,0.00042164,30]
[310917426,1704814407909,-2592.03,0.00042164,30]
[310917427,1704814407919,-12556.6,0.00042164,30]
[310917428,1704814407929,-2705.09,0.00042164,30]
[310917429,1704814407937,-500.0,0.00042164,30]
[310917430,1704814407947,-500.0,0.00042164,30]
[310917431,1704814407956,-2400.96,0.00042164,30]